bitfinex/quotes_ETHUSD_20260120
["timestamp","ask_amount","ask_price","bid_price","bid_amount"]
[1768887709666,0.5108004,3162.4,3161.7,0.94082156]
[1768887709867,1.47219095,3162.4,3161.7,0.94082156]
[1768887710570,0.96139055,3162.3,3161.7,0.94082156]
[1768887711872,0.96139055,3162.3,3161.5,0.94082156]
[1768887712176,3.67305094,3162.4,3161.6,0.94082156]
[1768887712177,0.96139055,3162.2,3161.6,0.94082156]
[1768887712374,0.5108004,3162.4,3161.6,0.94082156]
[1768887712375,0.96139055,3162.3,3161.6,0.94082156]
[1768887713974,0.96145459,3162.2,3161.6,0.94082156]
[1768887714182,0.96145459,3162.2,3161.4,4.09460265]
[1768887714382,0.96145459,3162.2,3161.5,3.16304447]
[1768887714565,0.96145459,3162.2,3161.6,0.93145049]
[1768887714767,0.5108004,3162.4,3161.7,0.93145049]
[1768887714956,0.0008004,3162.4,3161.7,0.93145049]
[1768887715152,0.00080024,3162.7,3162.1,0.93145049]
[1768887715481,0.00080024,3162.7,3162.3,0.93145049]
[1768887716777,0.96225483,3162.7,3162.1,0.93145049]
[1768887717847,0.96225483,3162.7,3162.1,4.48941178]
[1768887718066,0.001,3162.4,3162.1,5.25489436]
[1768887718260,0.96225483,3162.7,3162.1,5.25489436]
[1768887718671,0.00080032,3163.0,3162.4,3.55796129]
[1768887718848,0.96145459,3162.9,3162.4,3.55796129]
[1768887719277,0.96145459,3162.9,3162.3,0.93225081]
[1768887719776,0.96145459,3162.8,3162.3,0.93225081]
[1768887720343,0.41239348,3162.8,3162.3,0.00080032]
[1768887720642,0.96145459,3162.7,3162.3,0.00080032]
[1768887721248,0.96145459,3162.6,3162.0,0.00080048]
[1768887721653,0.96145459,3162.4,3162.0,0.00080048]
[1768887723672,3.16225532,3162.3,3162.0,0.00080048]
[1768887723881,0.96145459,3162.1,3162.0,0.00080048]
[1768887725459,0.51,3162.2,3162.0,0.00080048]
[1768887725668,0.51,3162.2,3162.0,0.93225097]
[1768887726007,0.51,3162.2,3162.0,0.00080048]
[1768887726363,0.96145459,3162.3,3162.0,0.00080048]
[1768887726592,0.51,3162.4,3162.0,0.93225097]
[1768887727106,0.00080032,3162.7,3162.0,0.00080048]
[1768887727264,3.16266626,3162.7,3162.2,0.93145049]
[1768887727992,0.00080032,3162.7,3162.2,0.93145049]
[1768887728887,0.96225491,3162.7,3162.2,0.93145049]
[1768887729591,0.00080032,3162.7,3162.2,0.93145049]
[1768887729793,0.00080032,3162.7,3162.3,0.93145049]
[1768887730003,0.001,3162.4,3162.3,0.93145049]
[1768887730188,0.00080032,3162.7,3162.4,0.93145049]
[1768887731659,3.67171448,3162.9,3162.4,0.93145049]
[1768887731660,0.51,3162.9,3162.5,0.93145049]
[1768887732384,1.47145459,3162.9,3162.5,0.93145049]
[1768887732586,0.51,3162.9,3162.5,0.93145049]
[1768887734093,0.51,3162.9,3162.4,0.93145049]
[1768887734294,0.51,3162.9,3162.4,3.55796129]
[1768887734479,0.51,3162.9,3162.5,1.28732666]
[1768887734680,0.96225491,3163.0,3162.5,1.28732666]
[1768887735074,4.12382284,3163.0,3162.5,1.28732666]
[1768887735401,4.12382284,3163.0,3162.5,0.35587617]
[1768887735402,0.96145459,3162.9,3162.5,0.35587617]
[1768887735602,0.96145459,3162.9,3162.3,0.0008004]
[1768887735781,0.96145459,3162.9,3162.3,0.93225089]
[1768887737900,0.00080032,3163.3,3162.4,0.93145049]
[1768887738100,0.00080032,3163.3,3162.3,3.16305572]
[1768887738101,0.00080016,3163.6,3163.2,0.93145049]
[1768887738781,0.96225475,3163.6,3163.0,0.93145049]
[1768887738985,0.00080016,3163.6,3163.0,0.93145049]
[1768887739290,0.00080016,3164.0,3163.1,3.1614205]
[1768887739492,0.00080016,3164.0,3163.4,0.93145049]
[1768887739794,0.00080016,3164.0,3163.6,0.93145049]
[1768887740794,0.001,3164.2,3163.8,0.93145049]
[1768887740995,0.00080048,3164.6,3164.0,0.93145049]
[1768887741777,0.00080048,3164.6,3164.0,1.43745049]
[1768887742521,0.96145459,3164.5,3163.9,0.00080048]
[1768887742710,0.96145459,3164.3,3163.9,0.00080048]
[1768887742878,0.96145459,3164.1,3163.9,0.00080048]
[1768887744174,0.98399235,3164.6,3163.9,0.92694827]
[1768887744985,4.14396722,3164.6,3163.9,0.92694827]
[1768887745185,0.98319187,3164.5,3163.9,0.00080048]
[1768887745482,0.98319187,3164.4,3163.9,0.00080048]
[1768887745889,0.41439672,3164.5,3163.9,0.92694827]
[1768887746096,0.00080048,3164.6,3163.9,0.92694827]
[1768887746799,0.98319187,3164.5,3163.9,0.92694827]
[1768887746994,0.98319187,3164.5,3163.9,0.00080048]
[1768887747395,0.98319187,3164.4,3163.9,0.00080048]
[1768887749986,0.98319187,3164.3,3163.9,0.00080048]
[1768887750188,1.39752693,3164.3,3163.9,0.00080048]
[1768887751015,0.98319187,3164.2,3163.9,0.00080048]
[1768887751186,0.41433506,3164.3,3163.9,0.00080048]
[1768887751714,0.41433506,3164.3,3163.9,0.92694827]
[1768887751884,0.98319187,3164.5,3163.9,0.92694827]
[1768887753691,0.98319187,3164.5,3164.2,0.002]
[1768887754509,0.98319187,3164.4,3164.2,0.002]
[1768887755623,0.98319187,3164.4,3163.9,0.00280048]
[1768887756009,0.98319187,3164.3,3163.9,0.00280048]
[1768887756208,0.98319187,3164.2,3163.9,0.00280048]
[1768887757614,0.98319187,3164.2,3163.6,0.00080024]
[1768887758109,0.98319187,3164.0,3163.6,0.00080024]
[1768887761438,4.14376036,3164.0,3163.6,0.00080024]
[1768887762233,0.98319187,3163.9,3163.6,0.00080024]
[1768887762434,0.96447761,3163.7,3163.6,0.00080024]
[1768887766037,0.96447761,3164.1,3163.6,0.92774839]
[1768887766408,0.96447761,3164.1,3163.9,0.002]
[1768887766741,3.1603933,3164.2,3163.9,0.002]
[1768887766926,4.63558096,3164.3,3163.9,0.002]
[1768887767126,0.77958358,3164.2,3163.9,0.92894815]
[1768887767335,0.00080048,3164.3,3163.9,0.92894815]
[1768887767842,0.96447761,3164.2,3163.9,0.002]
[1768887768539,0.00080048,3164.3,3163.9,0.92894815]
[1768887771235,0.96447761,3164.2,3163.3,0.00080024]
[1768887771425,0.96447761,3163.9,3163.3,0.50680024]
[1768887773132,0.96302828,3163.7,3163.3,0.00080024]
[1768887773438,0.96302828,3163.7,3163.4,0.506]
[1768887773635,0.41237843,3163.7,3163.3,0.00080024]
[1768887773809,0.96302828,3163.6,3163.3,0.00080024]
[1768887775208,0.96302828,3163.5,3163.3,0.00080024]
[1768887775616,0.96302828,3163.5,3163.2,0.00080024]
[1768887775816,0.96302828,3163.5,3163.0,0.506]
[1768887776239,0.96302828,3163.4,3162.9,0.5068004]
[1768887776427,0.96302828,3163.4,3162.9,0.0008004]
[1768887777642,4.12420503,3163.4,3162.9,0.0008004]
[1768887777829,0.96302828,3163.3,3162.9,0.0008004]
[1768887779207,0.96302828,3163.3,3163.2,0.002]
[1768887780411,0.96302828,3163.5,3163.2,0.002]
[1768887780612,0.00180024,3163.6,3163.2,0.0399074]
[1768887781411,0.96482852,3163.6,3163.2,0.002]
[1768887781656,0.00180024,3163.6,3163.2,0.0399074]
[1768887782006,0.00180024,3163.6,3163.3,0.0379074]
[1768887782207,0.00180024,3163.6,3163.3,0.505]
[1768887782926,0.00180024,3163.6,3163.3,0.5429074]
[1768887783239,0.96482852,3163.6,3163.2,0.32213935]
[1768887783543,0.96482852,3163.6,3163.3,0.505]
[1768887783841,0.96302828,3163.5,3163.2,0.507]
[1768887784447,0.00180024,3163.6,3163.3,0.0379074]
[1768887785514,0.00180024,3163.6,3163.2,0.507]
[1768887785718,0.00180024,3163.6,3163.3,0.0379074]
[1768887786049,0.96302828,3164.4,3163.4,0.03530692]
[1768887786213,0.96382876,3164.3,3163.6,0.00080032]
[1768887786411,0.00080048,3164.3,3163.6,0.03610724]
[1768887786650,0.00080048,3164.3,3163.8,0.03530692]
[1768887787242,3.16077427,3164.6,3163.9,0.035307]
[1768887787413,3.16077427,3164.6,3164.1,0.03450644]
[1768887787613,0.96302828,3164.4,3164.0,0.505]
[1768887789244,3.16076505,3164.6,3164.0,0.53950644]
[1768887789438,0.96302828,3164.5,3164.0,0.505]
[1768887789949,0.96302828,3164.4,3164.0,0.505]
[1768887791153,0.96302828,3164.4,3163.9,0.00080056]
[1768887791322,0.96302828,3164.4,3163.9,0.50580056]
[1768887791643,0.96302828,3164.4,3163.8,0.505]
[1768887791644,0.96302828,3164.2,3163.8,0.505]
[1768887791846,0.96302828,3163.9,3163.8,0.505]
[1768887792218,0.00080032,3164.0,3163.8,0.505]
[1768887792419,0.00080032,3164.0,3163.7,0.54030676]
[1768887792619,0.00080032,3164.0,3163.8,0.37012459]
[1768887792820,0.00080056,3164.3,3163.9,0.03530676]
[1768887794128,0.00080048,3164.6,3164.0,0.03530676]
[1768887794324,0.96382876,3164.6,3164.0,0.03530676]
[1768887794520,0.96382876,3164.6,3163.9,0.00080064]
[1768887794723,0.96382876,3164.6,3164.0,0.505]
[1768887795248,0.96382876,3164.6,3163.9,0.00080064]
[1768887795448,0.96382876,3164.6,3164.1,0.505]
[1768887796360,0.96302828,3164.5,3164.1,0.505]
[1768887797519,0.00080048,3164.6,3164.1,0.505]
[1768887797520,0.00080048,3164.6,3164.2,0.03530676]
[1768887799544,0.00080048,3164.6,3164.3,0.03530676]
[1768887803931,0.00080048,3164.6,3164.3,0.03730676]
[1768887804132,0.00080048,3164.9,3164.4,0.03530676]
[1768887804937,0.00080048,3164.9,3164.6,0.03530676]
[1768887805135,0.95449968,3165.3,3164.8,0.03530676]
[1768887805331,0.95449968,3165.3,3164.7,0.54030676]
[1768887805754,0.95449968,3165.3,3164.8,0.03530676]
[1768887806871,0.001,3165.4,3164.8,0.03530676]
[1768887807674,0.95549968,3165.4,3164.8,0.37001601]
[1768887807895,0.95549968,3165.4,3164.6,0.03530676]
[1768887808174,0.95549968,3165.4,3164.9,0.505]
[1768887808735,0.95549968,3165.4,3164.6,0.03530676]
[1768887808938,0.95549968,3165.4,3164.7,0.505]
[1768887809277,0.95449968,3165.3,3164.8,0.505]
[1768887809449,0.95449968,3165.2,3164.9,0.505]
[1768887809768,0.95449968,3165.2,3164.8,0.505]
[1768887809975,0.001,3165.4,3164.9,0.03530676]
[1768887811253,0.001,3165.4,3165.0,0.37000229]
[1768887811576,0.001,3165.4,3165.0,0.40530905]
[1768887811967,0.001,3165.4,3165.0,0.03530676]
[1768887812482,0.95549968,3165.4,3164.7,3.15982085]
[1768887812684,0.95549968,3165.4,3165.1,0.505]
[1768887813359,0.001,3165.4,3165.1,0.505]
[1768887817152,0.95549968,3165.4,3165.1,0.505]
[1768887817983,0.95449968,3165.3,3164.5,0.03610732]
[1768887818187,0.95449968,3165.3,3164.6,0.505]
[1768887819055,4.1138199,3165.3,3164.6,0.505]
[1768887819255,0.95449968,3165.2,3164.6,0.505]
[1768887819897,0.95449968,3165.2,3164.5,0.03610732]
[1768887820050,0.95449968,3165.0,3164.5,0.00080056]
[1768887820251,0.95449968,3165.0,3164.6,0.505]
[1768887822690,0.001,3165.4,3164.6,0.505]
[1768887822691,0.92841198,3165.3,3164.6,0.54030676]
[1768887823076,0.92841198,3165.3,3164.6,0.03530676]
[1768887823281,0.92841198,3165.3,3164.7,0.505]
[1768887823482,0.92841198,3165.2,3164.7,0.505]
[1768887827636,0.92841198,3165.2,3164.7,0.54030676]
[1768887828710,0.92941198,3165.1,3164.7,0.54030676]
[1768887829622,0.001,3165.1,3164.8,0.03530676]
[1768887830522,0.92941198,3165.1,3164.7,0.505]
[1768887832134,0.92941198,3165.1,3164.7,0.54030676]
[1768887832713,0.001,3165.1,3164.7,0.54030676]
[1768887833718,0.001,3165.1,3164.7,0.03530676]
[1768887833923,0.001,3165.1,3164.8,0.506]
[1768887834933,0.001,3165.1,3164.8,0.54130676]
[1768887837442,0.99447849,3165.4,3164.9,0.03530676]
[1768887837602,0.99447849,3165.4,3164.9,3.58618671]
[1768887837802,0.99447849,3165.4,3164.9,3.99540538]
[1768887838218,0.99447849,3165.4,3165.0,0.03530676]
[1768887839606,0.001,3165.4,3165.0,0.03530676]
[1768887840838,0.99347849,3165.5,3165.0,0.03530676]
[1768887841043,0.99347849,3165.5,3165.0,3.19480536]
[1768887841214,0.99347849,3165.5,3165.1,0.7154904]
[1768887841417,0.99347849,3165.5,3165.2,0.506]
[1768887841620,0.99347849,3165.5,3165.1,0.7154904]
[1768887841818,0.99347849,3165.5,3165.2,0.506]
[1768887842613,0.99347849,3165.6,3165.3,0.506]
[1768887842844,0.001,3165.7,3165.3,1.85924116]
[1768887843505,0.99347849,3166.3,3165.6,0.91161886]
[1768887843705,0.99347849,3166.2,3165.7,0.506]
[1768887845644,0.99347849,3166.2,3165.7,1.41761886]
[1768887845841,0.99347849,3166.2,3165.7,0.506]
[1768887846040,0.99347849,3166.1,3165.7,0.506]
[1768887846539,0.99347849,3166.1,3165.8,0.506]
[1768887846747,0.99347849,3166.1,3165.8,0.50314213]
[1768887846947,0.99347849,3166.1,3165.4,0.91161886]
[1768887847241,0.99347849,3166.1,3165.5,1.3628679]
[1768887847542,0.99347849,3166.1,3165.5,1.8688679]
[1768887847740,0.99347849,3166.1,3165.6,0.91161886]
[1768887848240,0.99347849,3166.5,3165.6,0.91161886]
[1768887848638,0.99347849,3166.5,3165.5,4.50812899]
[1768887848939,0.99347849,3166.5,3165.6,0.7667253]
[1768887849111,0.99347849,3166.5,3165.5,1.8688679]
[1768887849437,0.99347849,3166.5,3165.7,0.91161886]
[1768887850335,0.99347849,3166.5,3165.8,0.91161886]
[1768887850538,0.99347849,3166.5,3165.7,3.15885602]
[1768887850539,0.99347849,3166.5,3166.0,0.91161886]
[1768887851338,3.1577022,3166.9,3165.9,4.05687995]
[1768887851339,0.99347849,3166.8,3166.1,0.506]
[1768887852456,0.99347849,3166.8,3166.1,1.41761886]
[1768887852626,0.99347849,3166.8,3166.2,0.45761568]
[1768887852825,0.99347849,3166.8,3166.2,1.36923454]
[1768887853954,0.99347849,3167.0,3166.3,0.91161886]
[1768887854535,0.99347849,3166.9,3166.3,0.91161886]
[1768887855059,0.99347849,3166.9,3166.4,0.506]
[1768887855855,0.99347849,3166.9,3166.4,0.69352345]
[1768887856231,3.1576806,3166.9,3166.4,0.18752345]
[1768887856437,0.99347849,3166.8,3166.5,0.506]
[1768887858630,0.99347849,3167.2,3166.6,0.91161886]
[1768887859138,0.99347849,3167.2,3166.2,0.506]
[1768887859447,0.99347849,3167.0,3166.2,0.506]
[1768887860566,0.99347849,3167.0,3165.5,3.15903281]
[1768887860567,0.99347849,3166.8,3166.1,0.506]
[1768887861345,0.99347849,3166.8,3166.1,1.41761886]
[1768887861541,0.99347849,3166.8,3166.2,0.91161886]
[1768887862566,0.99347849,3167.0,3166.2,0.91161886]
[1768887862753,4.15098198,3167.1,3166.4,0.91161886]
[1768887863262,0.001,3166.9,3166.4,0.91161886]
[1768887865271,0.91734866,3166.9,3166.1,0.90905241]
[1768887865441,0.91734866,3166.9,3166.5,0.506]
[1768887866872,3.15866321,3166.9,3166.5,0.506]
[1768887867070,3.15866321,3166.9,3166.5,1.41505241]
[1768887867276,0.001,3166.9,3166.6,0.90905241]
[1768887867645,0.001,3166.9,3166.5,0.506]
[1768887867848,0.91734866,3166.9,3166.5,0.506]
[1768887868374,0.001,3166.9,3166.5,1.41505241]
[1768887868555,0.001,3166.9,3166.6,0.90905241]
[1768887869543,0.001,3166.9,3166.7,0.90905241]
[1768887873972,0.001,3166.9,3166.6,0.506]
[1768887875589,0.91734866,3166.9,3166.7,0.506]
[1768887875784,0.40634866,3166.8,3166.7,0.506]
[1768887876005,0.38890994,3166.8,3166.7,0.506]
[1768887877199,0.001,3166.9,3166.7,0.506]
[1768887878774,0.001,3166.9,3166.7,1.41505241]
[1768887880193,0.001,3166.9,3166.8,0.90905241]
[1768887880489,0.91634866,3167.5,3166.8,0.90905241]
[1768887882771,0.90711115,3167.4,3166.8,0.90905241]
[1768887884769,4.06429274,3167.4,3166.8,0.90905241]
[1768887885067,0.90711115,3167.3,3166.8,0.90905241]
[1768887887373,0.001,3167.0,3166.8,0.90905241]
[1768887887573,0.90711115,3167.3,3166.8,0.90905241]
[1768887889098,0.90711115,3167.4,3166.8,0.90905241]
[1768887892300,0.90711115,3167.3,3166.8,0.45730071]
[1768887892479,0.90711115,3167.3,3166.4,0.94322231]
[1768887892990,0.90711115,3167.3,3166.5,0.506]
[1768887893576,0.90711115,3167.3,3166.5,1.4552349]
[1768887894696,3.15736297,3167.2,3166.5,1.4552349]
[1768887894910,0.9284008,3167.1,3166.5,1.4552349]
[1768887896076,0.9284008,3167.1,3166.2,0.9492349]
[1768887896280,0.9284008,3167.1,3166.5,0.506]
[1768887897003,3.15746372,3167.1,3166.5,0.506]
[1768887897180,0.9284008,3167.0,3166.5,0.506]
[1768887897581,0.9284008,3167.0,3166.4,0.506]
[1768887898700,0.9284008,3166.9,3166.4,0.506]
[1768887899072,0.9284008,3166.9,3166.7,0.002]
[1768887899302,0.9284008,3166.9,3166.4,0.506]
[1768887899699,0.9284008,3166.9,3166.4,0.508]
[1768887899904,0.9284008,3166.9,3165.8,0.9492349]
[1768887899905,0.9284008,3166.8,3165.8,0.9492349]
[1768887900109,0.9284008,3166.8,3166.0,1.4552349]
[1768887900469,0.9284008,3166.8,3166.0,0.9492349]
[1768887900674,0.9284008,3166.6,3165.8,0.9492349]
[1768887901081,0.9284008,3166.6,3165.9,0.506]
[1768887901400,0.9284008,3166.6,3166.0,0.9492349]
[1768887901594,0.9284008,3166.6,3166.1,0.50032169]
[1768887902105,0.9284008,3166.6,3166.1,0.9492349]
[1768887902682,0.9284008,3166.9,3166.1,0.9492349]
[1768887903007,0.9284008,3166.8,3166.1,0.9492349]
[1768887903377,0.9284008,3166.8,3165.9,4.49721693]
[1768887903578,0.9284008,3166.8,3166.0,0.95572169]
[1768887903809,0.9284008,3166.8,3166.0,0.506]
[1768887904104,0.9284008,3166.8,3166.0,0.9492349]
[1768887904308,0.9284008,3166.8,3166.1,0.506]
[1768887905313,0.9284008,3166.6,3166.1,0.506]
[1768887905988,0.9284008,3166.6,3166.1,1.4552349]
[1768887906527,0.9284008,3166.6,3166.2,0.9492349]
[1768887906810,0.9284008,3166.6,3166.1,0.506]
[1768887907676,4.0863678,3166.6,3166.1,0.506]
[1768887908314,0.9284008,3166.6,3166.1,0.506]
[1768887908485,0.9284008,3166.6,3166.1,1.4552349]
[1768887909309,3.15766206,3166.9,3166.2,0.9492349]
[1768887909482,0.9284008,3166.8,3166.2,1.44955659]
[1768887909911,0.9284008,3166.8,3166.2,0.50032169]
[1768887910111,0.9284008,3166.8,3166.1,1.4552349]
[1768887910979,0.9284008,3166.8,3166.1,0.506]
[1768887911396,0.9284008,3166.6,3166.1,0.504]
[1768887911605,0.9284008,3166.6,3165.3,0.9492349]
[1768887911891,0.9284008,3166.6,3166.0,0.002]
[1768887912095,0.9284008,3166.4,3166.0,0.002]
[1768887913498,0.9284008,3166.3,3166.0,0.002]
[1768887916610,0.9284008,3166.2,3166.0,0.002]
[1768887920415,3.15828209,3166.3,3166.1,0.9492349]
[1768887920616,0.511,3167.0,3166.2,6.81301898]
[1768887920617,0.001,3167.0,3166.2,6.81301898]
[1768887920817,0.9284008,3167.5,3166.9,3.54798203]
[1768887920980,3.15646602,3168.1,3167.1,0.9284008]
[1768887921185,0.9284008,3168.0,3167.1,0.9284008]
[1768887921715,0.9284008,3168.0,3167.2,0.9284008]
[1768887922514,0.9284008,3167.5,3166.2,4.08676097]
[1768887922731,0.9284008,3167.3,3166.4,4.59256137]
[1768887922927,0.9284008,3167.3,3166.5,0.9284008]
[1768887923882,0.001,3167.0,3166.5,0.9284008]
[1768887924520,0.001,3167.0,3166.6,0.506]
[1768887925084,0.001,3167.0,3166.7,0.506]
[1768887925085,0.94634297,3167.0,3166.7,0.506]
[1768887925627,0.94634297,3167.0,3166.4,0.002]
[1768887925835,0.94634297,3167.0,3166.5,0.506]
[1768887926521,0.94634297,3167.0,3166.4,0.002]
[1768887926522,0.94634297,3167.0,3166.4,0.508]
[1768887926724,0.94534297,3166.9,3166.4,0.508]
[1768887927839,0.94534297,3166.9,3166.4,1.4364008]
[1768887928547,0.94534297,3166.9,3166.5,0.9284008]
[1768887929043,0.001,3167.0,3166.5,0.9284008]
[1768887929241,0.001,3167.0,3166.6,0.9284008]
[1768887929544,0.94534297,3167.4,3166.8,0.9284008]
[1768887929743,3.15668064,3167.9,3167.0,0.9284008]
[1768887929744,0.94534297,3167.6,3167.0,0.9284008]
[1768887930039,0.94534297,3167.9,3167.0,0.9284008]
[1768887930265,0.94534297,3168.1,3167.0,0.9284008]
[1768887930807,0.94534297,3168.1,3167.2,0.9284008]
[1768887932762,0.94534297,3168.1,3167.4,0.9284008]
[1768887933048,0.94534297,3168.1,3167.6,0.9284008]
[1768887935928,0.001,3167.8,3167.6,0.9284008]
[1768887936154,0.94534297,3168.1,3167.6,0.9284008]
[1768887938757,3.15618755,3168.4,3167.6,0.9284008]
[1768887938941,0.94534297,3168.1,3167.6,1.38755599]
[1768887939258,0.94534297,3168.1,3167.6,0.9284008]
[1768887944971,0.97571949,3168.0,3167.1,0.9284008]
[1768887945156,0.97571949,3168.0,3167.2,0.506]
[1768887945357,0.97571949,3168.0,3166.9,3.15765103]
[1768887945536,0.97571949,3168.0,3167.3,0.506]
[1768887945737,0.97571949,3167.8,3167.3,0.506]
[1768887947773,0.97571949,3167.9,3167.4,0.9284008]
[1768887947967,3.15739601,3168.2,3167.4,0.9284008]
[1768887947968,0.97571949,3168.1,3167.4,0.9284008]
[1768887948681,0.001,3167.8,3167.4,0.9284008]
[1768887948837,0.97571949,3168.1,3167.4,0.9284008]
[1768887949350,0.97571949,3168.1,3167.5,0.9284008]
[1768887949871,0.97571949,3168.0,3167.4,1.38777277]
[1768887950168,0.001,3168.2,3167.5,0.9284008]
[1768887950348,0.001,3168.2,3167.5,3.15706393]
[1768887950664,0.97671949,3168.2,3167.6,1.4344008]
[1768887951270,0.97671949,3168.2,3167.7,0.9284008]
[1768887951766,0.001,3168.2,3167.7,0.9284008]
[1768887951970,0.001,3168.2,3167.7,1.38753467]
[1768887952360,0.001,3168.2,3167.8,0.9284008]
[1768887954248,0.92974783,3168.2,3167.8,0.9284008]
[1768887954763,0.92974783,3168.2,3167.7,1.36295475]
[1768887955286,0.92974783,3168.2,3167.8,0.90382088]
[1768887957679,0.92974783,3168.2,3167.8,1.40641207]
[1768887958472,0.001,3168.2,3167.8,1.40641207]
[1768887958675,0.001,3168.2,3167.9,0.90382088]
[1768887958972,0.001,3168.2,3167.8,1.40641207]
[1768887959280,0.92974783,3168.2,3167.8,1.40641207]
[1768887959656,0.92974783,3168.2,3167.8,0.90382088]
[1768887960676,0.92974783,3168.6,3167.9,0.90382088]
[1768887964777,0.92874783,3168.5,3167.9,0.506]
[1768887965486,0.92874783,3168.4,3167.6,0.90382088]
[1768887965792,3.15610542,3168.5,3167.3,0.506]
[1768887965793,0.92874783,3168.2,3167.3,0.506]
[1768887966550,6.31221084,3168.5,3167.6,0.90382088]
[1768887966551,0.92874783,3168.4,3167.6,0.90382088]
[1768887967686,4.08493683,3168.4,3167.6,0.90382088]
[1768887967887,0.92874783,3168.3,3167.6,0.90382088]
[1768887969672,0.92974783,3168.6,3168.0,0.90382088]
[1768887970053,0.92974783,3168.6,3167.9,0.506]
[1768887970054,0.92974783,3168.6,3167.9,1.40982088]
[1768887971480,0.92974783,3168.6,3168.0,0.4566572]
[1768887972074,0.92974783,3168.6,3167.9,1.40982088]
[1768887972389,0.92974783,3168.6,3167.9,0.90382088]
[1768887972772,0.92974783,3168.6,3168.0,0.506]
[1768887972974,0.92874783,3168.5,3168.0,0.506]
[1768887973696,0.001,3168.3,3168.0,0.506]
[1768887975802,0.92874783,3168.2,3167.9,0.002]
[1768887977263,0.92874783,3168.1,3167.6,0.506]
[1768887977669,0.92874783,3168.1,3167.6,3.1569641]
[1768887977993,0.92874783,3168.1,3167.6,4.46706348]
[1768887978907,0.92874783,3168.1,3167.6,1.31009938]
[1768887980072,0.001,3168.3,3167.7,0.90382088]
[1768887981704,0.92974783,3168.6,3168.0,0.90382088]
[1768887982005,0.92974783,3168.6,3168.1,1.34861521]
[1768887984975,0.92974783,3168.6,3168.1,0.90382088]
[1768887985275,0.92974783,3168.6,3168.0,0.506]
[1768887985506,0.92974783,3168.6,3168.0,1.42711807]
[1768887986410,0.001,3168.3,3168.1,0.92111807]
[1768887986578,0.92974783,3168.6,3168.1,0.92111807]
[1768887986779,0.92974783,3168.6,3168.2,0.45836395]
[1768887987109,0.92974783,3168.6,3168.1,0.92111807]
[1768887987715,0.001,3168.6,3168.1,0.92111807]
[1768887988591,0.9321182,3168.6,3168.1,0.92111807]
[1768887988811,0.9321182,3168.6,3168.2,0.506]
[1768887989513,0.9321182,3168.6,3168.1,0.506]
[1768887990117,0.9321182,3168.6,3168.0,0.506]
[1768887990281,0.9321182,3168.6,3168.0,0.96438714]
[1768887991422,0.001,3168.6,3168.1,0.92111807]
[1768887993590,0.9321182,3168.6,3168.1,0.92111807]
[1768887993886,0.9321182,3168.6,3168.2,0.506]
[1768887994490,0.9321182,3168.6,3168.1,0.92111807]
[1768887994695,0.9321182,3168.6,3168.0,0.45838714]
[1768887994896,0.9321182,3168.6,3168.1,0.506]
[1768887995097,0.001,3168.6,3168.2,0.92111807]
[1768887998047,0.001,3168.3,3168.2,0.92111807]
[1768887998336,0.001,3168.6,3168.2,0.92111807]
[1768888003328,0.9311182,3168.7,3168.3,0.97532554]
[1768888003523,0.9311182,3168.7,3168.3,1.45794963]
[1768888003725,0.95194872,3169.0,3168.3,1.45794963]
[1768888003932,0.95194872,3169.0,3168.3,0.97532554]
[1768888005725,0.95194872,3168.9,3168.2,0.97532554]
[1768888005926,0.95194872,3168.9,3168.1,1.66987606]
[1768888006234,0.95194872,3168.9,3168.2,0.506]
[1768888007529,0.95194872,3168.9,3168.2,1.48132554]
[1768888007864,0.95194872,3168.9,3168.3,0.97532554]
[1768888010140,0.001,3168.7,3168.3,0.97532554]
[1768888010642,0.95294872,3168.7,3168.3,0.97532554]
[1768888012609,0.95294872,3168.7,3168.1,1.16387606]
[1768888012854,0.95294872,3168.7,3167.7,3.15684358]
[1768888013013,0.95194872,3168.6,3167.8,0.507]
[1768888013340,0.95194872,3168.6,3167.8,3.66376449]
[1768888014323,0.95194872,3168.6,3167.8,4.57726895]
[1768888014643,0.95194872,3168.6,3167.9,0.45772689]
[1768888015647,0.95194872,3168.6,3167.9,0.96472689]
[1768888016430,0.95194872,3168.6,3167.9,5.03489198]
[1768888017155,0.95194872,3168.6,3167.9,4.52789198]
[1768888017338,0.95194872,3168.6,3167.9,5.03489198]
[1768888017640,0.95194872,3168.6,3168.1,0.91350446]
[1768888018247,0.95194872,3168.6,3168.0,0.5034892]
[1768888018847,0.95194872,3168.6,3168.0,1.41699366]
[1768888020149,0.95194872,3168.6,3168.0,0.91350446]
[1768888022034,0.95194872,3168.6,3168.0,0.91550446]
[1768888023455,0.96222004,3168.5,3168.0,0.002]
[1768888023928,0.96222004,3168.5,3168.0,0.509]
[1768888026047,0.96222004,3168.5,3168.0,0.91550446]
[1768888026248,0.96222004,3168.5,3168.0,1.42250446]
[1768888026542,0.96322004,3168.7,3168.1,0.91350446]
[1768888026863,0.96222004,3168.6,3168.0,0.9669264]
[1768888027156,0.96222004,3168.6,3168.0,0.509]
[1768888028364,0.96222004,3168.6,3167.6,0.91550446]
[1768888028523,0.96222004,3168.3,3167.6,0.509]
[1768888028846,0.96222004,3168.2,3167.6,0.509]
[1768888029658,0.96222004,3168.2,3167.6,0.002]
[1768888030661,0.96222004,3168.1,3167.6,0.002]
[1768888031353,0.96222004,3168.1,3167.2,0.91550446]
[1768888031354,0.96222004,3168.1,3167.2,0.002]
[1768888032555,0.96222004,3167.9,3167.2,0.002]
[1768888032762,0.96222004,3167.9,3166.9,0.509]
[1768888032763,0.96222004,3167.7,3166.9,0.002]
[1768888033868,0.96222004,3167.7,3166.6,1.42050446]
[1768888034034,0.96222004,3167.7,3166.4,0.91550446]
[1768888034235,0.72753513,3167.8,3166.5,0.507]
[1768888034236,0.96222004,3167.5,3166.5,0.507]
[1768888034647,0.96222004,3167.4,3166.5,1.42050446]
[1768888035439,0.96222004,3167.4,3166.4,0.002]
[1768888035772,0.96222004,3167.4,3166.4,0.91550446]
[1768888036779,3.15726328,3167.3,3166.4,0.91550446]
[1768888037069,0.96222004,3167.2,3166.4,0.91550446]
[1768888039073,0.96222004,3167.1,3166.4,0.002]
[1768888039257,0.96222004,3167.1,3166.4,0.91550446]
[1768888040241,0.96222004,3167.1,3166.4,0.002]
[1768888041238,0.96222004,3167.1,3166.4,0.91550446]
[1768888043041,0.96222004,3167.1,3166.5,0.91350446]
[1768888043238,0.96222004,3167.1,3166.5,0.95551156]
[1768888046474,0.92227794,3167.4,3166.7,0.95751156]